Workbook

Sheet Input Sheet
A1: Data Input Sheet
A3: Purchase Price | B3: 472000
A4: Down Payment | B4: 122000
A5: Amount of Purchase Price Financed | B5: =B3-B4 -> 350000
A6: Guaranteed Interest Rate | B6: 0.07
A7: Guaranteed Terms | B7: 25
A8: Bank Beg. Farmer/SDA Down Payment Terms | B8: 30
A9: FSA Beg. Farmer/SDA Down Payment Terms | B9: 20
A10: FSA D-FO Interest Rate | B10: 0.015
A11: FSA D-FO Terms | B11: 40
A12: Particpation Lender Portion Amount | B12: 250000 | C12: =IF(AND(B5>0,B12=0),"Warning! Must Enter Value",IF(AND(B5>300000,B12<B5-300000),"Warning FSA loan Amount Exceeded",IF(B12>B5,"Warning! Value Exceeds Amount Financed",""))) -> 
A13: Land Price/Acre | B13: 2950
A16: Shared Lien Postion Unguaranteed Portion | B16: 0
A17: Shared Lien Postion Guaranteed Amount | B17: 250000 | C17: =IF(AND(B18=300000,B17>914000),"Warning! FSA Loan Amount Exceeded", IF(B17+B18>1214000,"Warning! FSA Loan Amount Exceeded","")) -> 
A18: Shared Lien Position FSA Amount | B18: 100000 | C18: =IF(B18>300000,"Warning! FSA Loan Amount Exceeded","") -> 
B19: =SUM(B16:B18) -> 350000 | C19: =IF(OR(B16+B17+B18>B5, B16+B17+B18<B5),"Warning! Total Does Not Match Amount Financed","") -> 
A20: Shared Lien Postion Unguaranteed Interest Rate | B20: 0.06
A21: Shared Lien Postion Unguaranteed Terms | B21: 23
A24: Note: When a unguaranteed real estate loan and guaranteed real estate loan share the same
A25: lien position the 85% loan to value ratio does not apply to junior liens for guaranteed real estate loans.
A27: All three Shared Position amounts must equal Amount of Purchase Price Financed.
A29: Failure to correct any displaying "Warning Messages" will result in the option being blacked out.
A31: Disclaimer: This calculator is only a guide. Accuracy of the results are not guaranteed and are subject to the rules and regulations of the Farm Service Agency
A32: Version 5.2 last updated 10/6/11

Sheet Real Estate Financing Calc.
B1: GUARANTEE FARM OWNERSHIP LOANS | C1: DOWN PAYMENT | E1: DIRECT FARM OWNERSHIP | F1: 50/50 JOINT FINANCING | H1: PARTICPATION FINANCING | J1: SHARED LIEN BANK/GUAR/DIRECT
A4: PURCHASE PRICE
A5: ='Input Sheet'!B3 -> 472000 | B5: ='Input Sheet'!B3 -> 472000 | C5: ='Input Sheet'!B3 -> 472000 | E5: ='Input Sheet'!B3 -> 472000 | F5: ='Input Sheet'!B3 -> 472000 | H5: ='Input Sheet'!B3 -> 472000 | J5: ='Input Sheet'!B3 -> 472000
A6: DOWN PAYMENT | B6: =B7/B5 -> 0.2584745763 | C6: =C7/C5 -> 0.2584745763 | E6: =E7/E5 -> 0.2584745763 | F6: =F7/F5 -> 0.2584745763 | H6: =H7/H5 -> 0.2584745763 | J6: =J7/J5 -> 0.2584745763
A7: ='Input Sheet'!B4 -> 122000 | B7: =A7 -> 122000 | C7: =IF(A7>C5*0.05,A7,C5*0.05) -> 122000 | E7: =A7 -> 122000 | F7: =A7 -> 122000 | H7: ='Input Sheet'!B4 -> 122000 | J7: =A7 -> 122000
A8: AMOUNT OF PURCHASE PRICE FINANCED | B8: ='Input Sheet'!B5 -> 350000 | C8: =C5-C7 -> 350000 | E8: ='Input Sheet'!B5 -> 350000 | F8: ='Input Sheet'!B5 -> 350000 | H8: =H5-H7 -> 350000 | J8: =J5-J7 -> 350000
A9: TERMS
A10: BANK LOAN AMOUNT YEARS INTEREST RATE | B10: N/A | C10: See Note | E10: N/A | F10: See Note | H10: See Note | J10: Bank | K10: =J11/J8 -> 0
J11: ='Input Sheet'!B16 -> 0
J12: =IF('Input Sheet'!B21=0,J16,'Input Sheet'!B21) -> 23
J13: =IF('Input Sheet'!B20 = 0,J17,'Input Sheet'!B20) -> 0.06
A14: BANK GUAR. LOAN AMOUNT YEARS INTEREST RATE | B14: Bank (100%) | C14: Bank | D14: =C15/C5 -> 0.2915254237 | E14: N/A | F14: Bank | G14: =F15/F8 -> 0.5 | H14: Bank | I14: =H15/H8 -> 0.7142857143 | J14: Bank | K14: =J15/J8 -> 0.7142857143
B15: =B8 -> 350000 | C15: =IF(C5>500000,C8-225000,C5-C7-(C5*0.45)) -> 137600 | F15: =F8/2 -> 175000 | H15: ='Input Sheet'!B12 -> 250000 | J15: ='Input Sheet'!B17 -> 250000
B16: ='Input Sheet'!B7 -> 25 | C16: ='Input Sheet'!B8 -> 30 | F16: =B16 -> 25 | H16: =B16 -> 25 | J16: =H16 -> 25
B17: ='Input Sheet'!B6 -> 0.07 | C17: =B17 -> 0.07 | F17: =B17 -> 0.07 | H17: =B17 -> 0.07 | J17: =B17 -> 0.07
A18: FSA LOAN AMOUNT YEARS INTEREST RATE | B18: N/A | C18: FSA | D18: =C19/C5 -> 0.45 | E18: FSA (100%) | F18: FSA | G18: =F19/F8 -> 0.5 | H18: FSA | I18: =H19/H8 -> 0.2857142857 | J18: FSA | K18: =J19/J8 -> 0.2857142857
C19: =IF(C5>500000,225000,C8-C15) -> 212400 | E19: =E8 -> 350000 | F19: =F8/2 -> 175000 | H19: =H8-H15 -> 100000 | J19: ='Input Sheet'!B18 -> 100000
C20: ='Input Sheet'!B9 -> 20 | E20: ='Input Sheet'!B11 -> 40 | F20: ='Input Sheet'!B11 -> 40 | H20: ='Input Sheet'!B11 -> 40 | J20: =H20 -> 40
C21: =IF('Input Sheet'!B10-0.04>0.015,'Input Sheet'!B10-0.04,0.015) -> 0.015 | E21: ='Input Sheet'!B10 -> 0.015 | F21: =IF('Input Sheet'!B10<=0.05,'Input Sheet'!B10,0.05) -> 0.015 | H21: =IF(AND(I18>0.5,'Input Sheet'!B10>=0.05),'Input Sheet'!B10,IF(AND(I18>0.5,'Input Sheet'!B10<=0.05),'Input Sheet'!B10,IF(AND(I18<=0.5,'Input Sheet'!B10<=0.05),'Input Sheet'!B10,IF(AND(I18<=0.5,'Input Sheet'!B10>0.05),0.05)))) -> 0.015 | J21: =IF(AND(K18>0.5,'Input Sheet'!B10>=0.05),'Input Sheet'!B10,IF(AND(K18>0.5,'Input Sheet'!B10<=0.05),'Input Sheet'!B10,IF(AND(K18<=0.5,'Input Sheet'!B10<=0.05),'Input Sheet'!B10,IF(AND(K18<=0.5,'Input Sheet'!B10>0.05),0.05)))) -> 0.015
A22: TOTAL PAYMENTS
B23: =PMT(B17,B16,B15)*-1 -> 30033.68103 | C23: =PMT(C17,C16,C15)*-1+PMT(C21,C20,C19)*-1 -> 23460.08342 | E23: =PMT(E21,E20,E19)*-1 -> 11699.48559 | F23: =PMT(F17,F16,F15)*-1+PMT(F21,F20,F19)*-1 -> 20866.58331 | H23: =PMT(H17,H16,H15)*-1+PMT(H21,H20,H19)*-1 -> 24795.33947 | J23: =PMT(J13,J12,J11)*-1+PMT(J17,J16,J15)*-1+PMT(J21,J20,J19)*-1 -> 24795.33947
A24: COST/ACRE
A25: =A5 -> 472000 | B25: G-F0 | C25: BF-F0 | E25: D-FO | F25: JOINT | H25: PART | J25: SHARED
A26: WILL BUY @
A27: ='Input Sheet'!B13 -> 2950 | B27: =B23/A28 -> 187.7105064 | C27: =C23/A28 -> 146.6255214 | E27: =E23/A28 -> 73.12178496 | F27: =F23/A28 -> 130.4161457 | H27: =H23/A28 -> 154.9708717 | J27: =J23/A28 -> 154.9708717
A28: =A25/A27 -> 160
A29: =A27+200 -> 3150 | B29: =B23/A30 -> 200.4366424 | C29: =C23/A30 -> 156.5662347 | E29: =E23/A30 -> 78.07919411 | F29: =F23/A30 -> 139.2579183 | H29: =H23/A30 -> 165.4773715 | J29: =J23/A30 -> 165.4773715
A30: =A25/A29 -> 149.8412698
A31: =A27+400 -> 3350 | B31: =B23/A32 -> 213.1627785 | C31: =C23/A32 -> 166.506948 | E31: =E23/A32 -> 83.03660326 | F31: =F23/A32 -> 148.0996909 | H31: =H23/A32 -> 175.9838713 | J31: =J23/A32 -> 175.9838713
A32: =A25/A31 -> 140.8955224
A33: =A27+600 -> 3550 | B33: =B23/A34 -> 225.8889145 | C33: =C23/A34 -> 176.4476613 | E33: =E23/A34 -> 87.99401241 | F33: =F23/A34 -> 156.9414635 | H33: =H23/A34 -> 186.4903711 | J33: =J23/A34 -> 186.4903711
A34: =A25/A33 -> 132.9577465
A35: =A27+800 -> 3750 | B35: =B23/A36 -> 238.6150505 | C35: =C23/A36 -> 186.3883747 | E35: =E23/A36 -> 92.95142156 | F35: =F23/A36 -> 165.783236 | H35: =H23/A36 -> 196.9968708 | J35: =J23/A36 -> 196.9968708
A36: =A25/A35 -> 125.8666667
A37: =A27+1000 -> 3950 | B37: =B23/A38 -> 251.3411866 | C37: =C23/A38 -> 196.329088 | E37: =E23/A38 -> 97.90883071 | F37: =F23/A38 -> 174.6250086 | H37: =H23/A38 -> 207.5033706 | J37: =J23/A38 -> 207.5033706
A38: =A25/A37 -> 119.4936709
A39: =A27+1200 -> 4150 | B39: =B23/A40 -> 264.0673226 | C39: =C23/A40 -> 206.2698013 | E39: =E23/A40 -> 102.8662399 | F39: =F23/A40 -> 183.4667812 | H39: =H23/A40 -> 218.0098704 | J39: =J23/A40 -> 218.0098704
A40: =A25/A39 -> 113.7349398
A41: =A27+1400 -> 4350 | B41: =B23/A42 -> 276.7934586 | C41: =C23/A42 -> 216.2105146 | E41: =E23/A42 -> 107.823649 | F41: =F23/A42 -> 192.3085538 | H41: =H23/A42 -> 228.5163702 | J41: =J23/A42 -> 228.5163702
A42: =A25/A41 -> 108.5057471
A43: =A27+1600 -> 4550 | B43: =B23/A44 -> 289.5195946 | C43: =C23/A44 -> 226.1512279 | E43: =E23/A44 -> 112.7810582 | F43: =F23/A44 -> 201.1503264 | H43: =H23/A44 -> 239.0228699 | J43: =J23/A44 -> 239.0228699
A44: =A25/A43 -> 103.7362637
A45: =A27+1800 -> 4750 | B45: =B23/A46 -> 302.2457307 | C45: =C23/A46 -> 236.0919412 | E45: =E23/A46 -> 117.7384673 | F45: =F23/A46 -> 209.992099 | H45: =H23/A46 -> 249.5293697 | J45: =J23/A46 -> 249.5293697
A46: =A25/A45 -> 99.36842105
A48: Note:
A49: Loan limits are set for each program: G-FO - $1,214,000; BF-FO - $225,000; Joint - $600,000; D-FO - $300,000
A50: Bank portion maybe guaranteed or unguaranteed. The Beginning Farmer Downpayment program may receive up to a 95% guarantee

Sheet Sheet3
